fUSD/lending_fUSD_20240712
["ID","MTS","AMOUNT","RATE_DAILY","PERIOD"]
[331827339,1720773099152,-616.26,0.0001452,2]
[331827340,1720773099161,-500.0,0.0001452,2]
[331827341,1720773099170,-190.6,0.0001452,2]
[331827342,1720773099180,-500.0,0.0001452,2]
[331827343,1720773099189,-500.0,0.0001452,2]
[331827344,1720773099198,-500.0,0.0001452,2]
[331827345,1720773099208,-500.0,0.0001452,2]
[331827346,1720773099217,-535.71,0.0001452,2]
[331827347,1720773099227,-500.0,0.0001452,2]
[331827348,1720773099239,-485.39399786,0.0001452,2]
[331827349,1720773099250,-642.92,0.0001452,2]
[331827350,1720773099260,-662.01,0.0001452,2]
[331827351,1720773099270,-565.48,0.0001452,2]
[331827352,1720773099280,-500.0,0.0001452,2]
[331827353,1720773099289,-221.39,0.0001452,2]
[331827354,1720773099297,-500.0,0.0001452,2]
[331827355,1720773099309,-500.0,0.0001452,2]
[331827356,1720773099319,-565.56,0.0001452,2]
[331827357,1720773099334,-500.0,0.0001452,2]
[331827358,1720773099345,-500.0,0.0001452,2]
[331827359,1720773099355,-513.8,0.0001452,2]
[331827360,1720773099473,-500.0,0.0001452,2]
[331827361,1720773099483,-500.0,0.0001452,2]
[331827362,1720773099492,-500.0,0.0001452,2]
[331827363,1720773099502,-927.94,0.0001452,2]
[331827364,1720773099511,-500.0,0.0001452,2]
[331827365,1720773099520,-500.0,0.0001452,2]
[331827366,1720773099531,-500.0,0.0001452,2]
[331827367,1720773099542,-500.0,0.0001452,2]
[331827368,1720773099552,-645.8,0.0001452,2]
[331827369,1720773099562,-500.0,0.0001452,2]
[331827370,1720773099572,-500.0,0.0001452,2]
[331827371,1720773099583,-500.0,0.0001452,2]
[331827372,1720773099593,-771.86,0.0001452,2]
[331827373,1720773099604,-500.0,0.0001452,2]
[331827374,1720773099614,-500.0,0.0001452,2]
[331827375,1720773099623,-503.57,0.0001452,2]
[331827376,1720773099633,-500.0,0.0001452,2]
[331827377,1720773099644,-458.29,0.0001452,2]
[331827378,1720773099653,-500.0,0.0001452,2]
[331827379,1720773099662,-500.0,0.0001452,2]
[331827380,1720773099672,-657.51,0.0001452,2]
[331827381,1720773099682,-2780.1,0.0001452,2]
[331827382,1720773099691,-732.46,0.0001452,2]
[331827383,1720773099702,-391.27,0.0001452,2]
[331827384,1720773099711,-508.06,0.0001452,2]
[331827385,1720773099721,-500.0,0.0001452,2]
[331827386,1720773099731,-500.0,0.0001452,2]
[331827387,1720773099743,-676.56,0.0001452,2]
[331827388,1720773099752,-271.94,0.0001452,2]
[331827389,1720773099762,-500.0,0.0001452,2]
[331827390,1720773099771,-500.0,0.0001452,2]
[331827391,1720773099782,-835.01,0.0001452,2]
[331827392,1720773099791,-500.0,0.0001452,2]
[331827393,1720773099800,-453.77,0.0001452,2]
[331827394,1720773099810,-652.34,0.0001452,2]
[331827395,1720773099820,-500.0,0.0001452,2]
[331827396,1720773099831,-1422.62,0.0001452,2]
[331827397,1720773099840,-614.56,0.0001452,2]
[331827398,1720773099850,-500.0,0.0001452,2]
[331827399,1720773099859,-867.78,0.0001452,2]
[331827400,1720773099870,-500.0,0.0001452,2]
[331827401,1720773099881,-500.0,0.0001452,2]
[331827402,1720773099891,-634.54,0.0001452,2]
[331827403,1720773099904,-179.4276882,0.0001452,2]
[331827404,1720773099918,-498.6823118,0.0001452,2]
[331827405,1720773099931,-188.0876882,0.0001452,2]
[331827406,1720773099942,-311.9123118,0.0001452,2]
[331827407,1720773099950,-234.19800001,0.0001452,2]
[331827408,1720773099962,-438.28199999,0.0001452,2]
[331827409,1720773099971,-617.39,0.0001452,2]
[331827410,1720773099979,-500.0,0.0001452,2]
[331827411,1720773099988,-500.0,0.0001452,2]
[331827412,1720773100000,-1111.52649901,0.0001452,2]
[331827413,1720773100012,-160.96350099,0.0001452,2]
[331827414,1720773100022,-767.09,0.0001452,2]
[331827415,1720773100031,-500.0,0.0001452,2]
[331827416,1720773100041,-2493.15,0.0001452,2]
[331827417,1720773100051,-500.0,0.0001452,2]
[331827418,1720773100060,-873.41,0.0001452,2]
[331827419,1720773100070,-500.0,0.0001452,2]
[331827420,1720773100079,-773.22,0.0001452,2]
[331827421,1720773100089,-224.98,0.0001452,2]
[331827422,1720773100099,-500.0,0.0001452,2]
[331827423,1720773100108,-500.0,0.0001452,2]
[331827424,1720773100118,-665.3,0.0001452,2]
[331827425,1720773100127,-500.0,0.0001452,2]
[331827426,1720773100136,-665.24,0.0001452,2]
[331827427,1720773100147,-500.0,0.0001452,2]
[331827428,1720773100156,-516.63,0.0001452,2]
[331827429,1720773100166,-500.0,0.0001452,2]
[331827430,1720773100175,-541.62,0.0001452,2]
[331827431,1720773100185,-688.00435902,0.0001452,2]
[331827432,1720773100196,-288.51564098,0.0001452,2]
[331827433,1720773100205,-645.23,0.0001452,2]
[331827434,1720773100215,-500.0,0.0001452,2]
[331827435,1720773100224,-31.04848738,0.00014521,2]
[331827436,1720773100236,-425.13844262,0.00014521,2]
[331827437,1720773100245,-151.0,0.00014527,2]
[331827438,1720773100255,-151.0,0.00014527,2]
[331827439,1720773100264,-500.0,0.00014574,2]
[331827440,1720773100274,-500.0,0.00014574,2]
[331827441,1720773100283,-242.67451328,0.00014574,2]
[331827442,1720773100293,-500.0,0.00014574,2]
[331827443,1720773100302,-297.93969916,0.00014574,2]
[331827444,1720773100311,-500.0,0.00014574,2]
[331827445,1720773100321,-500.0,0.00014574,2]
[331827446,1720773100334,-25.22495171,0.00014574,2]
[331827447,1720773100346,-474.77504829,0.00014574,2]
[331827448,1720773100355,-837.8,0.00014574,2]
[331827449,1720773100365,-500.0,0.00014574,2]
[331827450,1720773100374,-500.0,0.00014574,2]
[331827451,1720773100384,-503.06,0.00014575,2]
[331827452,1720773100394,-655.72,0.00014575,2]
[331827453,1720773100405,-291.96341168,0.00014575,2]
[331827454,1720773100414,-589.99,0.00014575,2]
[331827455,1720773100424,-500.0,0.00014575,2]
[331827456,1720773100433,-509.03,0.00014575,2]
[331827457,1720773100442,-500.0,0.00014575,2]
[331827458,1720773100451,-616.26,0.00014575,2]
[331827459,1720773100461,-160.62,0.00014575,2]
[331827460,1720773100471,-500.0,0.00014575,2]
[331827461,1720773100480,-500.0,0.00014575,2]
[331827462,1720773100489,-500.0,0.00014575,2]
[331827463,1720773100498,-500.0,0.00014575,2]
[331827464,1720773100507,-535.71,0.00014575,2]
[331827465,1720773100517,-500.0,0.00014575,2]
[331827466,1720773100527,-642.92,0.00014575,2]
[331827467,1720773100536,-662.01,0.00014575,2]
[331827468,1720773100546,-565.48,0.00014575,2]
[331827469,1720773100555,-500.0,0.00014575,2]
[331827470,1720773100564,-221.39,0.00014575,2]
[331827471,1720773100574,-500.0,0.00014575,2]
[331827472,1720773100584,-500.0,0.00014575,2]
[331827473,1720773100593,-565.56,0.00014575,2]
[331827474,1720773100602,-500.0,0.00014575,2]
[331827475,1720773100612,-500.0,0.00014575,2]
[331827476,1720773100621,-513.8,0.00014575,2]
[331827477,1720773100630,-500.0,0.00014575,2]
[331827478,1720773100640,-500.0,0.00014575,2]
[331827479,1720773100651,-500.0,0.00014575,2]
[331827480,1720773100661,-927.94,0.00014575,2]
[331827481,1720773100670,-500.0,0.00014575,2]
[331827482,1720773100678,-276.15,0.00014575,2]
[331827483,1720773100689,-293.4,0.00014575,2]
[331827484,1720773100699,-500.0,0.00014575,2]
[331827485,1720773100708,-645.8,0.00014575,2]
[331827486,1720773100717,-500.0,0.00014575,2]
[331827487,1720773100727,-500.0,0.00014575,2]
[331827488,1720773100736,-500.0,0.00014575,2]
[331827489,1720773100746,-771.86,0.00014575,2]
[331827490,1720773100755,-500.0,0.00014575,2]
[331827491,1720773100764,-500.0,0.00014575,2]
[331827492,1720773100774,-503.57,0.00014575,2]
[331827493,1720773100783,-208.06,0.00014575,2]
[331827494,1720773100792,-500.0,0.00014575,2]
[331827495,1720773100801,-500.0,0.00014575,2]
[331827496,1720773100810,-657.51,0.00014575,2]
[331827497,1720773100819,-2780.1,0.00014575,2]
[331827498,1720773100829,-732.46,0.00014575,2]
[331827499,1720773100838,-508.06,0.00014575,2]
[331827500,1720773100847,-428.04,0.00014575,2]
[331827501,1720773100857,-500.0,0.00014575,2]
[331827502,1720773100866,-676.56,0.00014575,2]
[331827503,1720773100876,-500.0,0.00014575,2]
[331827504,1720773100886,-500.0,0.00014575,2]
[331827505,1720773100896,-835.01,0.00014575,2]
[331827506,1720773100906,-500.0,0.00014575,2]
[331827507,1720773100915,-652.34,0.00014575,2]
[331827508,1720773100924,-500.0,0.00014575,2]
[331827509,1720773100933,-1422.62,0.00014575,2]
[331827510,1720773100941,-614.56,0.00014575,2]
[331827511,1720773100951,-267.68,0.00014575,2]
[331827512,1720773100960,-867.78,0.00014575,2]
[331827513,1720773100970,-500.0,0.00014575,2]
[331827514,1720773100979,-500.0,0.00014575,2]
[331827515,1720773100989,-634.54,0.00014575,2]
[331827516,1720773100998,-678.11,0.00014575,2]
[331827517,1720773101007,-500.0,0.00014575,2]
[331827518,1720773101016,-672.48,0.00014575,2]
[331827519,1720773101025,-617.39,0.00014575,2]
[331827520,1720773101034,-500.0,0.00014575,2]
[331827521,1720773101043,-500.0,0.00014575,2]
[331827522,1720773101053,-1272.49,0.00014575,2]
[331827523,1720773101062,-767.09,0.00014575,2]
[331827524,1720773101071,-284.22,0.00014575,2]
[331827525,1720773101081,-2493.15,0.00014575,2]
[331827526,1720773101090,-500.0,0.00014575,2]
[331827527,1720773101099,-873.41,0.00014575,2]
[331827528,1720773101108,-500.0,0.00014575,2]
[331827529,1720773101118,-773.22,0.00014575,2]
[331827530,1720773101127,-500.0,0.00014575,2]
[331827531,1720773101136,-389.78945554,0.00014575,2]
[331827532,1720773101148,-665.3,0.00014575,2]
[331827533,1720773101158,-322.63,0.00014575,2]
[331827534,1720773101167,-665.24,0.00014575,2]
[331827535,1720773101176,-500.0,0.00014575,2]
[331827536,1720773101186,-516.63,0.00014575,2]
[331827537,1720773101196,-500.0,0.00014575,2]
[331827538,1720773101205,-976.52,0.00014575,2]
[331827539,1720773101213,-645.23,0.00014575,2]
[331827540,1720773101223,-348.08,0.00014575,2]
[331827541,1720773101232,-2000.0,0.000146,2]
[331827542,1720773101241,-1344.0,0.000146,2]
[331827543,1720773101250,-151.0,0.000146,2]
[331827544,1720773101260,-500.0,0.000146,2]
[331827545,1720773101269,-2084.61381026,0.00014603,2]
[331827546,1720773101278,-500.0,0.00014609,2]
[331827547,1720773101287,-6084.7055638,0.0001461,2]
[331827548,1720773101297,-250.26050179,0.0001461,2]
[331827549,1720773101306,-7481.1115674,0.0001461,2]
[331827550,1720773101315,-2114.7505355,0.0001461,2]
[331827551,1720773101328,-300.0,0.0001461,2]
[331827552,1720773101337,-300.0,0.00014619,2]
[331827553,1720773101346,-38289.57953808,0.0001462,2]
[331827554,1720773101359,-33418.24191222,0.0001462,2]
[331827555,1720773101369,-151.0,0.0001462,2]
[331827556,1720773101379,-500.0,0.00014629,2]
[331827557,1720773101388,-500.0,0.00014629,2]
[331827558,1720773101400,-188.18,0.00014629,2]
[331827559,1720773101409,-500.0,0.00014629,2]
[331827560,1720773101418,-500.0,0.00014629,2]
[331827561,1720773101427,-500.0,0.00014629,2]
[331827562,1720773101437,-837.8,0.00014629,2]
[331827563,1720773101446,-500.0,0.00014629,2]
[331827564,1720773101455,-500.0,0.00014629,2]
[331827565,1720773101464,-503.06,0.0001463,2]
[331827566,1720773101474,-655.72,0.0001463,2]
[331827567,1720773101483,-589.99,0.0001463,2]
[331827568,1720773101493,-500.0,0.0001463,2]
[331827569,1720773101502,-509.03,0.0001463,2]
[331827570,1720773101511,-500.0,0.0001463,2]
[331827571,1720773101520,-616.26,0.0001463,2]
[331827572,1720773101530,-500.0,0.0001463,2]
[331827573,1720773101539,-500.0,0.0001463,2]
[331827574,1720773101549,-500.0,0.0001463,2]
[331827575,1720773101558,-500.0,0.0001463,2]
[331827576,1720773101567,-535.71,0.0001463,2]
[331827577,1720773101576,-500.0,0.0001463,2]
[331827578,1720773101585,-642.92,0.0001463,2]
[331827579,1720773101594,-662.01,0.0001463,2]
[331827580,1720773101603,-565.48,0.0001463,2]
[331827581,1720773101612,-500.0,0.0001463,2]
[331827582,1720773101622,-221.39,0.0001463,2]
[331827583,1720773101630,-500.0,0.0001463,2]
[331827584,1720773101639,-500.0,0.0001463,2]
[331827585,1720773101651,-565.56,0.0001463,2]
[331827586,1720773101662,-500.0,0.0001463,2]
[331827587,1720773101671,-500.0,0.0001463,2]
[331827588,1720773101680,-513.8,0.0001463,2]
[331827589,1720773101690,-500.0,0.0001463,2]
[331827590,1720773101699,-500.0,0.0001463,2]
[331827591,1720773101708,-500.0,0.0001463,2]
[331827592,1720773101718,-927.94,0.0001463,2]
[331827593,1720773101727,-500.0,0.0001463,2]
[331827594,1720773101736,-500.0,0.0001463,2]
[331827595,1720773101745,-645.8,0.0001463,2]
[331827596,1720773101755,-338.86,0.0001463,2]
[331827597,1720773101764,-500.0,0.0001463,2]
[331827598,1720773101774,-500.0,0.0001463,2]
[331827599,1720773101783,-771.86,0.0001463,2]
[331827600,1720773101793,-500.0,0.0001463,2]
[331827601,1720773101802,-500.0,0.0001463,2]
[331827602,1720773101812,-503.57,0.0001463,2]
[331827603,1720773101821,-500.0,0.0001463,2]
[331827604,1720773101830,-461.24,0.0001463,2]
[331827605,1720773101839,-657.51,0.0001463,2]
[331827606,1720773101848,-2780.1,0.0001463,2]
[331827607,1720773101857,-732.46,0.0001463,2]
[331827608,1720773101866,-508.06,0.0001463,2]
[331827609,1720773101876,-405.56,0.0001463,2]
[331827610,1720773101885,-676.56,0.0001463,2]
[331827611,1720773101895,-500.0,0.0001463,2]
[331827612,1720773101905,-500.0,0.0001463,2]
[331827613,1720773101914,-835.01,0.0001463,2]
[331827614,1720773101924,-500.0,0.0001463,2]
[331827615,1720773101933,-652.34,0.0001463,2]
[331827616,1720773101942,-500.0,0.0001463,2]
[331827617,1720773101955,-1422.62,0.0001463,2]
[331827618,1720773101965,-614.56,0.0001463,2]
[331827620,1720773101974,-867.78,0.0001463,2]
[331827621,1720773101983,-500.0,0.0001463,2]
[331827622,1720773101993,-500.0,0.0001463,2]
[331827623,1720773102002,-634.54,0.0001463,2]
[331827624,1720773102011,-678.11,0.0001463,2]
[331827625,1720773102021,-500.0,0.0001463,2]
[331827626,1720773102030,-672.48,0.0001463,2]
[331827627,1720773102040,-617.39,0.0001463,2]
[331827628,1720773102049,-500.0,0.0001463,2]
[331827629,1720773102059,-500.0,0.0001463,2]
[331827630,1720773102068,-1272.49,0.0001463,2]
[331827631,1720773102078,-767.09,0.0001463,2]
[331827632,1720773102087,-2493.15,0.0001463,2]
[331827633,1720773102096,-500.0,0.0001463,2]
[331827634,1720773102106,-873.41,0.0001463,2]
[331827635,1720773102115,-500.0,0.0001463,2]
[331827636,1720773102125,-773.22,0.0001463,2]
[331827637,1720773102134,-500.0,0.0001463,2]
[331827638,1720773102144,-665.3,0.0001463,2]
[331827639,1720773102154,-665.24,0.0001463,2]
[331827640,1720773102163,-500.0,0.0001463,2]
[331827641,1720773102173,-516.63,0.0001463,2]
[331827642,1720773102183,-500.0,0.0001463,2]
[331827643,1720773102192,-976.52,0.0001463,2]
[331827644,1720773102202,-645.23,0.0001463,2]
[331827645,1720773102211,-503.06,0.00014684,2]
[331827646,1720773102220,-655.72,0.00014684,2]
[331827647,1720773102230,-500.0,0.00014684,2]
[331827648,1720773102239,-589.99,0.00014684,2]
[331827649,1720773102248,-500.0,0.00014684,2]
[331827650,1720773102257,-509.03,0.00014684,2]
[331827651,1720773102266,-500.0,0.00014684,2]
[331827652,1720773102276,-616.26,0.00014684,2]
[331827653,1720773102286,-500.0,0.00014684,2]
[331827654,1720773102295,-500.0,0.00014684,2]
[331827655,1720773102305,-500.0,0.00014684,2]
[331827656,1720773102315,-587.85474986,0.00014684,2]
[331827657,1720773102326,-500.0,0.00014684,2]
[331827658,1720773102337,-535.71,0.00014684,2]
[331827659,1720773102346,-500.0,0.00014684,2]
[331827660,1720773102355,-642.92,0.00014684,2]
[331827661,1720773102367,-662.01,0.00014684,2]
[331827662,1720773102376,-565.48,0.00014684,2]
[331827663,1720773102385,-151.0,0.00014684,2]
[331827664,1720773102396,-500.0,0.00014684,2]
[331827665,1720773102408,-221.39,0.00014684,2]
[331827666,1720773102417,-500.0,0.00014684,2]
[331827667,1720773102426,-500.0,0.00014684,2]
[331827668,1720773102435,-565.56,0.00014684,2]
[331827669,1720773102445,-632.31642357,0.00014684,2]
[331827670,1720773102455,-561.54,0.00014684,2]
[331827671,1720773102464,-513.8,0.00014684,2]
[331827672,1720773102473,-500.0,0.00014684,2]
[331827673,1720773102483,-500.0,0.00014684,2]
[331827674,1720773102492,-500.0,0.00014684,2]
[331827675,1720773102501,-927.94,0.00014684,2]
[331827676,1720773102510,-500.0,0.00014684,2]
[331827677,1720773102519,-500.0,0.00014684,2]
[331827678,1720773102529,-500.0,0.00014684,2]
[331827679,1720773102538,-645.8,0.00014684,2]
[331827680,1720773102548,-500.0,0.00014684,2]
[331827681,1720773102557,-277.02,0.00014684,2]
[331827682,1720773102566,-500.0,0.00014684,2]
[331827683,1720773102576,-771.86,0.00014684,2]
[331827684,1720773102585,-500.0,0.00014684,2]
[331827685,1720773102595,-500.0,0.00014684,2]
[331827686,1720773102604,-503.57,0.00014684,2]
[331827687,1720773102613,-500.0,0.00014684,2]
[331827688,1720773102622,-500.0,0.00014684,2]
[331827689,1720773102631,-2780.1,0.00014684,2]
[331827690,1720773102641,-657.51,0.00014684,2]
[331827691,1720773102650,-732.46,0.00014684,2]
[331827692,1720773102659,-508.06,0.00014684,2]
[331827693,1720773102669,-676.56,0.00014684,2]
[331827694,1720773102679,-837.8,0.00014684,2]
[331827695,1720773102689,-500.0,0.00014684,2]
[331827696,1720773102698,-500.0,0.00014684,2]
[331827697,1720773102708,-835.01,0.00014684,2]
[331827698,1720773102717,-500.0,0.00014684,2]
[331827699,1720773102726,-652.34,0.00014684,2]
[331827700,1720773102736,-452.83087739,0.00014684,2]
[331827701,1720773102745,-500.0,0.00014684,2]
[331827702,1720773102756,-1422.62,0.00014684,2]
[331827703,1720773102766,-614.56,0.00014684,2]
[331827704,1720773102775,-867.78,0.00014684,2]
[331827705,1720773102785,-500.0,0.00014684,2]
[331827706,1720773102795,-500.0,0.00014684,2]
[331827707,1720773102805,-634.54,0.00014684,2]
[331827708,1720773102815,-678.11,0.00014684,2]
[331827709,1720773102824,-500.0,0.00014684,2]
[331827710,1720773102834,-672.48,0.00014684,2]
[331827711,1720773102843,-617.39,0.00014684,2]
[331827712,1720773102853,-500.0,0.00014684,2]
[331827713,1720773102863,-592.86503892,0.00014684,2]
[331827714,1720773102872,-500.0,0.00014684,2]
[331827715,1720773102883,-1272.49,0.00014684,2]
[331827716,1720773102893,-767.09,0.00014684,2]
[331827717,1720773102904,-2493.15,0.00014684,2]
[331827718,1720773102913,-151.0,0.00014684,2]
[331827719,1720773102923,-873.41,0.00014684,2]
[331827720,1720773102933,-257.29289524,0.00014684,2]
[331827721,1720773102942,-773.22,0.00014684,2]
[331827722,1720773102952,-500.0,0.00014684,2]
[331827723,1720773102961,-665.3,0.00014684,2]
[331827724,1720773102970,-665.24,0.00014684,2]
[331827725,1720773102980,-618.48733621,0.00014684,2]
[331827726,1720773102989,-516.63,0.00014684,2]
[331827727,1720773102999,-399.34,0.00014684,2]
[331827728,1720773103008,-976.52,0.00014684,2]
[331827729,1720773103017,-645.23,0.00014684,2]
[331827730,1720773103027,-200.94,0.00014738,2]
[331827731,1720773103037,-500.0,0.00014738,2]
[331827732,1720773103048,-500.0,0.00014738,2]
[331827733,1720773103058,-500.0,0.00014738,2]
[331827734,1720773103068,-500.0,0.00014738,2]
[331827735,1720773103078,-837.8,0.00014738,2]
[331827736,1720773103088,-503.06,0.00014739,2]
[331827737,1720773103098,-655.72,0.00014739,2]
[331827738,1720773103108,-589.99,0.00014739,2]
[331827739,1720773103118,-500.0,0.00014739,2]
[331827740,1720773103128,-509.03,0.00014739,2]
[331827741,1720773103138,-215.37,0.00014739,2]
[331827742,1720773103149,-616.26,0.00014739,2]
[331827743,1720773103158,-580.65,0.00014739,2]
[331827744,1720773103169,-500.0,0.00014739,2]
[331827745,1720773103179,-500.0,0.00014739,2]
[331827746,1720773103188,-535.71,0.00014739,2]
[331827747,1720773103198,-500.0,0.00014739,2]
[331827748,1720773103208,-642.92,0.00014739,2]
[331827749,1720773103219,-662.01,0.00014739,2]
[331827750,1720773103229,-565.48,0.00014739,2]
[331827751,1720773103239,-281.86,0.00014739,2]
[331827752,1720773103247,-221.39,0.00014739,2]
[331827753,1720773103257,-500.0,0.00014739,2]
[331827754,1720773103267,-232.60964278,0.00014739,2]
[331827755,1720773103276,-565.56,0.00014739,2]
[331827756,1720773103286,-513.8,0.00014739,2]
[331827757,1720773103295,-500.0,0.00014739,2]
[331827758,1720773103305,-500.0,0.00014739,2]
[331827759,1720773103315,-500.0,0.00014739,2]
[331827760,1720773103326,-927.94,0.00014739,2]
[331827761,1720773103340,-500.0,0.00014739,2]
[331827762,1720773103350,-500.0,0.00014739,2]
[331827763,1720773103359,-645.8,0.00014739,2]
[331827764,1720773103370,-208.4553593,0.00014739,2]
[331827765,1720773103380,-771.86,0.00014739,2]
[331827766,1720773103389,-500.0,0.00014739,2]
[331827767,1720773103402,-500.0,0.00014739,2]
[331827768,1720773103411,-503.57,0.00014739,2]
[331827769,1720773103421,-312.01785513,0.00014739,2]
[331827770,1720773103433,-2780.1,0.00014739,2]
[331827771,1720773103443,-657.51,0.00014739,2]
[331827772,1720773103452,-732.46,0.00014739,2]
[331827773,1720773103462,-508.06,0.00014739,2]
[331827774,1720773103471,-676.56,0.00014739,2]
[331827775,1720773103481,-500.0,0.00014739,2]
[331827776,1720773103491,-500.0,0.00014739,2]
[331827777,1720773103648,-835.01,0.00014739,2]
[331827778,1720773103658,-500.0,0.00014739,2]
[331827779,1720773103668,-652.34,0.00014739,2]
[331827780,1720773103678,-500.0,0.00014739,2]
[331827781,1720773103688,-1422.62,0.00014739,2]
[331827782,1720773103697,-614.56,0.00014739,2]
[331827783,1720773103707,-867.78,0.00014739,2]
[331827784,1720773103717,-500.0,0.00014739,2]
[331827785,1720773103726,-500.0,0.00014739,2]
[331827786,1720773103736,-634.54,0.00014739,2]
[331827787,1720773103745,-678.11,0.00014739,2]
[331827788,1720773103755,-500.0,0.00014739,2]
[331827789,1720773103764,-672.48,0.00014739,2]
[331827790,1720773103774,-617.39,0.00014739,2]
[331827791,1720773103784,-497.99,0.00014739,2]
[331827792,1720773103794,-500.0,0.00014739,2]
[331827793,1720773103803,-1272.49,0.00014739,2]
[331827794,1720773103813,-767.09,0.00014739,2]
[331827795,1720773103823,-2493.15,0.00014739,2]
[331827796,1720773103833,-873.41,0.00014739,2]
[331827797,1720773103843,-773.22,0.00014739,2]
[331827798,1720773103853,-500.0,0.00014739,2]
[331827799,1720773103863,-665.3,0.00014739,2]
[331827800,1720773103873,-665.24,0.00014739,2]
[331827801,1720773103882,-516.63,0.00014739,2]
[331827802,1720773103892,-976.52,0.00014739,2]
[331827803,1720773103902,-645.23,0.00014739,2]
[331827804,1720773103911,-151.0,0.00014793,2]
[331827805,1720773103920,-500.0,0.00014793,2]
[331827806,1720773103930,-500.0,0.00014793,2]
[331827807,1720773103939,-500.0,0.00014793,2]
[331827808,1720773103948,-179.08,0.00014793,2]
[331827809,1720773103958,-837.8,0.00014793,2]
[331827810,1720773103968,-503.06,0.00014794,2]
[331827811,1720773103977,-655.72,0.00014794,2]
[331827812,1720773103987,-589.99,0.00014794,2]
[331827813,1720773103996,-500.0,0.00014794,2]
[331827814,1720773104006,-509.03,0.00014794,2]
[331827815,1720773104015,-616.26,0.00014794,2]
[331827816,1720773104025,-501.9,0.00014794,2]
[331827817,1720773104034,-500.82,0.00014794,2]
[331827818,1720773104044,-535.71,0.00014794,2]
[331827819,1720773104053,-179.42485199,0.00014794,2]
[331827820,1720773104062,-642.92,0.00014794,2]
[331827821,1720773104072,-662.01,0.00014794,2]
[331827822,1720773104081,-565.48,0.00014794,2]
[331827823,1720773104091,-221.39,0.00014794,2]
[331827824,1720773104100,-500.0,0.00014794,2]
[331827825,1720773104109,-565.56,0.00014794,2]
[331827826,1720773104118,-513.8,0.00014794,2]
[331827827,1720773104127,-524.36709042,0.00014794,2]
[331827828,1720773104137,-500.0,0.00014794,2]
[331827829,1720773104146,-181.22670658,0.00014794,2]
[331827830,1720773104155,-927.94,0.00014794,2]
[331827831,1720773104164,-372.02,0.00014794,2]
[331827832,1720773104174,-500.0,0.00014794,2]
[331827833,1720773104184,-645.8,0.00014794,2]
[331827834,1720773104193,-771.86,0.00014794,2]
[331827835,1720773104202,-500.0,0.00014794,2]
[331827836,1720773104212,-500.0,0.00014794,2]
[331827837,1720773104221,-503.57,0.00014794,2]
[331827838,1720773104230,-657.51,0.00014794,2]
[331827839,1720773104239,-2780.1,0.00014794,2]